fUST/lending_fUST_20250626
["ID","MTS","AMOUNT","RATE_DAILY","PERIOD"]
[367774131,1750926634243,-500.0,0.00017067,2]
[367774132,1750926634252,-260.44628904,0.00017067,2]
[367774133,1750926634262,-460.0,0.00017067,2]
[367774134,1750926634271,-460.0,0.00017067,2]
[367774135,1750926634280,-839.6,0.00017067,2]
[367774136,1750926634289,-460.0,0.00017067,2]
[367774137,1750926634298,-460.0,0.00017067,2]
[367774138,1750926634308,-460.0,0.00017067,2]
[367774139,1750926634317,-460.0,0.00017067,2]
[367774140,1750926634326,-460.0,0.00017067,2]
[367774141,1750926634335,-460.0,0.00017067,2]
[367774142,1750926634345,-460.0,0.00017067,2]
[367774143,1750926634354,-460.0,0.00017067,2]
[367774144,1750926634363,-460.0,0.00017067,2]
[367774145,1750926634372,-460.0,0.00017067,2]
[367774146,1750926634382,-460.0,0.00017067,2]
[367774147,1750926634392,-460.0,0.00017067,2]
[367774148,1750926634401,-460.0,0.00017067,2]
[367774149,1750926634411,-460.0,0.00017067,2]
[367774150,1750926634420,-953.78,0.00017067,2]
[367774151,1750926634429,-460.0,0.00017067,2]
[367774152,1750926634438,-338.46,0.00017067,2]
[367774153,1750926634447,-378.32158637,0.00017067,2]
[367774154,1750926634456,-460.0,0.00017067,2]
[367774155,1750926634465,-373.77731891,0.00017067,2]
[367774156,1750926634475,-460.0,0.00017067,2]
[367774157,1750926634485,-460.0,0.00017067,2]
[367774158,1750926634494,-185.47605199,0.00017067,2]
[367774159,1750926634504,-460.0,0.00017067,2]
[367774160,1750926634513,-579.78,0.00017067,2]
[367774161,1750926634523,-2178.28,0.00017067,2]
[367774162,1750926634532,-437.34104707,0.00017067,2]
[367774163,1750926634542,-463.16510403,0.00017067,2]
[367774164,1750926634553,-1253.13,0.00017067,2]
[367774165,1750926634562,-1036.8,0.00017067,2]
[367774166,1750926634572,-460.0,0.00017067,2]
[367774167,1750926634581,-600.92,0.00017067,2]
[367774168,1750926634590,-217.83730844,0.00017067,2]
[367774169,1750926634599,-460.0,0.00017067,2]
[367774170,1750926634609,-3140.38,0.00017067,2]
[367774171,1750926634618,-500.0,0.00017068,2]
[367774172,1750926634628,-516.00506226,0.00017068,2]
[367774173,1750926634637,-863.99,0.00017068,2]
[367774174,1750926634646,-460.0,0.00017068,2]
[367774175,1750926634655,-476.21,0.00017068,2]
[367774176,1750926634665,-460.0,0.00017068,2]
[367774177,1750926634674,-805.45,0.00017068,2]
[367774178,1750926634684,-460.0,0.00017068,2]
[367774179,1750926634695,-606.21742393,0.00017069,2]
[367774180,1750926634705,-425.47163809,0.00017069,2]
[367774181,1750926634715,-460.0,0.00017069,2]
[367774182,1750926634724,-460.0,0.00017069,2]
[367774183,1750926634733,-460.0,0.00017069,2]
[367774184,1750926634744,-459.28170979,0.00017069,2]
[367774185,1750926634753,-470.74832594,0.00017069,2]
[367774186,1750926634762,-451.48202457,0.00017069,2]
[367774187,1750926634771,-470.04883305,0.00017069,2]
[367774188,1750926634781,-464.60463193,0.00017069,2]
[367774189,1750926634790,-460.0,0.00017069,2]
[367774190,1750926634800,-460.0,0.00017069,2]
[367774191,1750926634809,-473.37326785,0.00017069,2]
[367774192,1750926634819,-460.0,0.00017069,2]
[367774193,1750926634829,-284.65128269,0.00017069,2]
[367774194,1750926634839,-460.0,0.00017069,2]
[367774195,1750926634848,-453.60659987,0.00017069,2]
[367774196,1750926634857,-475.83459103,0.00017069,2]
[367774197,1750926634867,-460.0,0.00017069,2]
[367774198,1750926634878,-571.65619555,0.00017069,2]
[367774199,1750926634889,-202.40549441,0.0001724,2]
[367774200,1750926634899,-460.0,0.00017338,2]
[367774201,1750926634911,-863.1,0.00017338,2]
[367774202,1750926634921,-460.0,0.00017338,2]
[367774203,1750926634930,-460.0,0.00017339,2]
[367774204,1750926634940,-460.0,0.00017339,2]
[367774205,1750926634950,-1372.71,0.00017339,2]
[367774206,1750926634961,-460.0,0.00017339,2]
[367774207,1750926634971,-460.0,0.0001734,2]
[367774208,1750926634980,-514.89740137,0.0001734,2]
[367774209,1750926634990,-608.55,0.0001734,2]
[367774210,1750926634999,-460.0,0.0001734,2]
[367774211,1750926635009,-460.0,0.0001734,2]
[367774212,1750926635019,-460.0,0.0001734,2]
[367774213,1750926635029,-460.0,0.0001734,2]
[367774214,1750926635039,-460.0,0.0001734,2]
[367774215,1750926635049,-460.0,0.0001734,2]
[367774216,1750926635059,-1430.01,0.0001734,2]
[367774217,1750926635069,-460.0,0.0001734,2]
[367774218,1750926635078,-460.0,0.0001734,2]
[367774219,1750926635087,-460.0,0.0001734,2]
[367774220,1750926635096,-460.0,0.0001734,2]
[367774221,1750926635106,-460.0,0.0001734,2]
[367774222,1750926635115,-547.58,0.0001734,2]
[367774223,1750926635124,-460.0,0.0001734,2]
[367774224,1750926635134,-1799.96,0.0001734,2]
[367774225,1750926635143,-460.0,0.0001734,2]
[367774226,1750926635152,-460.0,0.0001734,2]
[367774227,1750926635162,-460.0,0.0001734,2]
[367774228,1750926635171,-743.3,0.0001734,2]
[367774229,1750926635180,-2012.3,0.0001734,2]
[367774230,1750926635190,-460.0,0.0001734,2]
[367774231,1750926635199,-460.0,0.0001734,2]
[367774232,1750926635208,-2473.19,0.0001734,2]
[367774233,1750926635218,-460.0,0.0001734,2]
[367774234,1750926635227,-460.0,0.0001734,2]
[367774235,1750926635237,-460.0,0.0001734,2]
[367774236,1750926635246,-1244.07,0.0001734,2]
[367774237,1750926635255,-460.0,0.0001734,2]
[367774238,1750926635265,-677.05,0.0001734,2]
[367774239,1750926635274,-460.0,0.0001734,2]
[367774240,1750926635282,-468.36,0.0001734,2]
[367774241,1750926635291,-460.0,0.0001734,2]
[367774242,1750926635301,-460.0,0.0001734,2]
[367774243,1750926635310,-460.0,0.0001734,2]
[367774244,1750926635320,-460.0,0.0001734,2]
[367774245,1750926635446,-460.0,0.0001734,2]
[367774246,1750926635457,-699.03,0.0001734,2]
[367774247,1750926635466,-460.0,0.0001734,2]
[367774248,1750926635476,-460.0,0.0001734,2]
[367774249,1750926635486,-513.68,0.00017341,2]
[367774250,1750926635495,-460.0,0.00017341,2]
[367774251,1750926635504,-460.0,0.00017341,2]
[367774252,1750926635513,-165.49,0.00017341,2]
[367774253,1750926635523,-460.0,0.00017341,2]
[367774254,1750926635532,-460.0,0.00017341,2]
[367774255,1750926635541,-460.0,0.00017341,2]
[367774256,1750926635550,-471.6,0.00017341,2]
[367774257,1750926635559,-460.0,0.00017341,2]
[367774258,1750926635568,-661.19,0.00017341,2]
[367774259,1750926635577,-460.0,0.00017341,2]
[367774260,1750926635586,-460.0,0.00017341,2]
[367774261,1750926635595,-440.0,0.00017341,2]
[367774262,1750926635604,-476.08610335,0.00017341,2]
[367774263,1750926635613,-460.0,0.00017341,2]
[367774264,1750926635622,-460.0,0.00017341,2]
[367774265,1750926635631,-460.0,0.00017341,2]
[367774266,1750926635640,-460.0,0.00017341,2]
[367774267,1750926635650,-839.6,0.00017341,2]
[367774268,1750926635659,-460.0,0.00017341,2]
[367774269,1750926635668,-460.0,0.00017341,2]
[367774270,1750926635677,-460.0,0.00017341,2]
[367774271,1750926635686,-460.0,0.00017341,2]
[367774272,1750926635695,-460.0,0.00017341,2]
[367774273,1750926635705,-460.0,0.00017341,2]
[367774274,1750926635714,-460.0,0.00017341,2]
[367774275,1750926635724,-460.0,0.00017341,2]
[367774276,1750926635733,-460.0,0.00017341,2]
[367774277,1750926635743,-460.0,0.00017341,2]
[367774278,1750926635754,-460.0,0.00017341,2]
[367774279,1750926635763,-460.0,0.00017341,2]
[367774280,1750926635772,-953.78,0.00017341,2]
[367774281,1750926635782,-460.0,0.00017341,2]
[367774282,1750926635791,-460.0,0.00017341,2]
[367774283,1750926635800,-460.0,0.00017341,2]
[367774284,1750926635809,-460.0,0.00017341,2]
[367774285,1750926635819,-579.78,0.00017341,2]
[367774286,1750926635830,-2178.28,0.00017341,2]
[367774287,1750926635840,-1253.13,0.00017341,2]
[367774288,1750926635849,-1036.8,0.00017341,2]
[367774289,1750926635858,-600.92,0.00017341,2]
[367774290,1750926635868,-460.0,0.00017341,2]
[367774291,1750926635880,-3140.38,0.00017341,2]
[367774292,1750926635890,-863.99,0.00017342,2]
[367774293,1750926635900,-476.21,0.00017342,2]
[367774294,1750926635910,-460.0,0.00017342,2]
[367774295,1750926635920,-805.45,0.00017342,2]
[367774296,1750926635931,-460.0,0.00017342,2]
[367774297,1750926635940,-333.04282899,0.00017343,2]
[367774298,1750926635949,-460.0,0.00017343,2]
[367774299,1750926635959,-460.0,0.00017343,2]
[367774300,1750926635969,-392.04529672,0.00017343,2]
[367774301,1750926635978,-460.0,0.00017612,2]
[367774302,1750926635987,-863.1,0.00017612,2]
[367774303,1750926635996,-460.0,0.00017612,2]
[367774304,1750926636006,-460.0,0.00017613,2]
[367774305,1750926636015,-460.0,0.00017613,2]
[367774306,1750926636024,-1372.71,0.00017613,2]
[367774307,1750926636033,-411.02,0.00017613,2]
[367774308,1750926636042,-460.0,0.00017614,2]
[367774309,1750926636052,-460.0,0.00017614,2]
[367774310,1750926636061,-460.0,0.00017614,2]
[367774311,1750926636073,-460.0,0.00017614,2]
[367774312,1750926636083,-460.0,0.00017614,2]
[367774313,1750926636092,-460.0,0.00017614,2]
[367774314,1750926636103,-460.0,0.00017614,2]
[367774315,1750926636113,-1430.01,0.00017614,2]
[367774316,1750926636122,-460.0,0.00017614,2]
[367774317,1750926636131,-460.0,0.00017614,2]
[367774318,1750926636141,-460.0,0.00017614,2]
[367774319,1750926636151,-460.0,0.00017614,2]
[367774320,1750926636160,-460.0,0.00017614,2]
[367774321,1750926636169,-547.58,0.00017614,2]
[367774322,1750926636178,-460.0,0.00017614,2]
[367774323,1750926636187,-1799.96,0.00017614,2]
[367774324,1750926636197,-460.0,0.00017614,2]
[367774325,1750926636207,-460.0,0.00017614,2]
[367774326,1750926636216,-460.0,0.00017614,2]
[367774327,1750926636225,-743.3,0.00017614,2]
[367774328,1750926636234,-2012.3,0.00017614,2]
[367774329,1750926636245,-460.0,0.00017614,2]
[367774330,1750926636254,-460.0,0.00017614,2]
[367774331,1750926636263,-2473.19,0.00017614,2]
[367774332,1750926636273,-460.0,0.00017614,2]
[367774333,1750926636283,-460.0,0.00017614,2]
[367774334,1750926636292,-266.6,0.00017614,2]
[367774335,1750926636301,-1244.07,0.00017614,2]
[367774336,1750926636310,-460.0,0.00017614,2]
[367774337,1750926636319,-677.05,0.00017614,2]
[367774338,1750926636328,-460.0,0.00017614,2]
[367774339,1750926636338,-468.36,0.00017614,2]
[367774340,1750926636350,-460.0,0.00017614,2]
[367774341,1750926636359,-460.0,0.00017614,2]
[367774342,1750926636368,-460.0,0.00017614,2]
[367774343,1750926636377,-460.0,0.00017614,2]
[367774344,1750926636386,-460.0,0.00017614,2]
[367774345,1750926636395,-699.03,0.00017614,2]
[367774346,1750926636404,-460.0,0.00017614,2]
[367774347,1750926636414,-460.0,0.00017614,2]
[367774348,1750926636423,-225.9,0.00017615,2]
[367774349,1750926636432,-460.0,0.00017615,2]
[367774350,1750926636441,-460.0,0.00017615,2]
[367774351,1750926636450,-460.0,0.00017615,2]
[367774352,1750926636459,-460.0,0.00017615,2]
[367774353,1750926636468,-471.6,0.00017615,2]
[367774354,1750926636477,-460.0,0.00017615,2]
[367774355,1750926636487,-661.19,0.00017615,2]
[367774356,1750926636496,-460.0,0.00017615,2]
[367774357,1750926636505,-460.0,0.00017615,2]
[367774358,1750926636515,-460.0,0.00017615,2]
[367774359,1750926636523,-460.0,0.00017615,2]
[367774360,1750926636533,-460.0,0.00017615,2]
[367774361,1750926636543,-460.0,0.00017615,2]
[367774362,1750926636552,-839.6,0.00017615,2]
[367774363,1750926636561,-460.0,0.00017615,2]
[367774364,1750926636570,-460.0,0.00017615,2]
[367774365,1750926636579,-460.0,0.00017615,2]
[367774366,1750926636588,-460.0,0.00017615,2]
[367774367,1750926636597,-460.0,0.00017615,2]
[367774368,1750926636607,-460.0,0.00017615,2]
[367774369,1750926636616,-460.0,0.00017615,2]
[367774370,1750926636625,-460.0,0.00017615,2]
[367774371,1750926636634,-460.0,0.00017615,2]
[367774372,1750926636644,-536.56,0.00017615,2]
[367774373,1750926636653,-460.0,0.00017615,2]
[367774374,1750926636662,-460.0,0.00017615,2]
[367774375,1750926636671,-953.78,0.00017615,2]
[367774376,1750926636680,-460.0,0.00017615,2]
[367774377,1750926636689,-460.0,0.00017615,2]
[367774378,1750926636699,-460.0,0.00017615,2]
[367774379,1750926636708,-460.0,0.00017615,2]
[367774380,1750926636717,-579.78,0.00017615,2]
[367774381,1750926636727,-2178.28,0.00017615,2]
[367774382,1750926636736,-1253.13,0.00017615,2]
[367774383,1750926636746,-1036.8,0.00017615,2]
[367774384,1750926636755,-600.92,0.00017615,2]
[367774385,1750926636764,-460.0,0.00017615,2]
[367774386,1750926636774,-3140.38,0.00017615,2]
[367774387,1750926636783,-460.0,0.00017616,2]
[367774388,1750926636794,-863.99,0.00017616,2]
[367774389,1750926636804,-476.21,0.00017616,2]
[367774390,1750926636813,-460.0,0.00017616,2]
[367774391,1750926636823,-805.45,0.00017616,2]
[367774392,1750926636832,-151.0,0.00017644,2]
[367774393,1750926636842,-202.40549438,0.00017805,2]
[367774394,1750926636851,-460.0,0.00017886,2]
[367774395,1750926636860,-863.1,0.00017886,2]
[367774396,1750926636870,-460.0,0.00017886,2]
[367774397,1750926636882,-460.0,0.00017887,2]
[367774398,1750926636891,-1372.71,0.00017887,2]
[367774399,1750926636901,-566.27505541,0.00017888,2]
[367774400,1750926636910,-291.42,0.00017888,2]
[367774401,1750926636919,-460.0,0.00017888,2]
[367774402,1750926636930,-460.0,0.00017888,2]
[367774403,1750926636940,-460.0,0.00017888,2]
[367774404,1750926636949,-460.0,0.00017888,2]
[367774405,1750926636961,-1430.01,0.00017888,2]
[367774406,1750926636972,-181.56,0.00017888,2]
[367774407,1750926636982,-460.0,0.00017888,2]
[367774408,1750926636991,-460.0,0.00017888,2]
[367774409,1750926637000,-460.0,0.00017888,2]
[367774410,1750926637010,-460.0,0.00017888,2]
[367774411,1750926637019,-547.58,0.00017888,2]
[367774412,1750926637028,-547.64,0.00017888,2]
[367774413,1750926637038,-1799.96,0.00017888,2]
[367774414,1750926637047,-460.0,0.00017888,2]
[367774415,1750926637056,-460.0,0.00017888,2]
[367774416,1750926637065,-460.0,0.00017888,2]
[367774417,1750926637074,-743.3,0.00017888,2]
[367774418,1750926637083,-2012.3,0.00017888,2]
[367774419,1750926637093,-460.0,0.00017888,2]
[367774420,1750926637103,-460.0,0.00017888,2]
[367774421,1750926637112,-2473.19,0.00017888,2]
[367774422,1750926637121,-460.0,0.00017888,2]
[367774423,1750926637130,-222.74,0.00017888,2]
[367774424,1750926637139,-1244.07,0.00017888,2]
[367774425,1750926637149,-460.0,0.00017888,2]
[367774426,1750926637158,-460.0,0.00017888,2]
[367774427,1750926637167,-677.05,0.00017888,2]
[367774428,1750926637176,-468.36,0.00017888,2]
[367774429,1750926637185,-460.0,0.00017888,2]
[367774430,1750926637194,-460.0,0.00017888,2]
[367774431,1750926637204,-460.0,0.00017888,2]
[367774432,1750926637213,-460.0,0.00017888,2]
[367774433,1750926637222,-699.03,0.00017888,2]
[367774434,1750926637232,-460.0,0.00017888,2]
[367774435,1750926637241,-460.0,0.00017888,2]
[367774436,1750926637250,-460.0,0.00017889,2]
[367774437,1750926637259,-340.53734078,0.00017889,2]
[367774438,1750926637268,-460.0,0.00017889,2]
[367774439,1750926637278,-460.0,0.00017889,2]
[367774440,1750926637289,-471.6,0.00017889,2]
[367774441,1750926637298,-460.0,0.00017889,2]
[367774442,1750926637307,-661.19,0.00017889,2]
[367774443,1750926637317,-460.0,0.00017889,2]
[367774444,1750926637328,-460.0,0.00017889,2]
[367774445,1750926637338,-460.0,0.00017889,2]
[367774446,1750926637348,-460.0,0.00017889,2]
[367774447,1750926637357,-839.6,0.00017889,2]
[367774448,1750926637366,-460.0,0.00017889,2]
[367774449,1750926637375,-460.0,0.00017889,2]
[367774450,1750926637385,-460.0,0.00017889,2]
[367774451,1750926637394,-460.0,0.00017889,2]
[367774452,1750926637403,-460.0,0.00017889,2]
[367774453,1750926637413,-460.0,0.00017889,2]
[367774454,1750926637423,-460.0,0.00017889,2]
[367774455,1750926637432,-460.0,0.00017889,2]
[367774456,1750926637442,-460.0,0.00017889,2]
[367774457,1750926637452,-350.36,0.00017889,2]
[367774458,1750926637461,-460.0,0.00017889,2]
[367774459,1750926637471,-953.78,0.00017889,2]
[367774460,1750926637480,-460.0,0.00017889,2]
[367774461,1750926637489,-460.0,0.00017889,2]
[367774462,1750926637498,-460.0,0.00017889,2]
[367774463,1750926637507,-579.78,0.00017889,2]
[367774464,1750926637516,-2178.28,0.00017889,2]
[367774465,1750926637526,-1253.13,0.00017889,2]
[367774466,1750926637536,-1036.8,0.00017889,2]
[367774467,1750926637545,-600.92,0.00017889,2]
[367774468,1750926637555,-460.0,0.00017889,2]
[367774469,1750926637565,-3140.38,0.00017889,2]
[367774470,1750926637574,-151.0,0.0001789,2]
[367774471,1750926637583,-863.99,0.0001789,2]
[367774472,1750926637592,-476.21,0.0001789,2]
[367774473,1750926637602,-460.0,0.0001789,2]
[367774474,1750926637610,-805.45,0.0001789,2]
[367774475,1750926637620,-151.671005,0.0001794,2]
[367774476,1750926637629,-151.0,0.000181,2]
[367774477,1750926637638,-12560.17507789,0.00018128,2]
[367774478,1750926637647,-160.0,0.00018128,2]
[367774479,1750926637656,-846.92323443,0.00018128,2]
[367774480,1750926637666,-160.0,0.00018128,2]
[367774481,1750926637675,-160.0,0.00018128,2]
[367774482,1750926637684,-230.24506774,0.00018128,2]
[367774483,1750926637693,-836.92866116,0.00018128,2]
[367774484,1750926637703,-213.72380786,0.00018128,2]
[367774485,1750926637711,-425.22527846,0.00018128,2]
[367774486,1750926637720,-460.0,0.0001816,2]
[367774487,1750926637730,-863.1,0.0001816,2]
[367774488,1750926637739,-460.0,0.0001816,2]
[367774489,1750926637748,-460.0,0.00018161,2]
[367774490,1750926637758,-1372.71,0.00018161,2]
[367774491,1750926637768,-460.0,0.00018162,2]
[367774492,1750926637777,-460.0,0.00018162,2]
[367774493,1750926637787,-369.23,0.00018162,2]
[367774494,1750926637797,-460.0,0.00018162,2]
[367774495,1750926637806,-1430.01,0.00018162,2]
[367774496,1750926637816,-460.0,0.00018162,2]
[367774497,1750926637825,-460.0,0.00018162,2]
[367774498,1750926637835,-460.0,0.00018162,2]
[367774499,1750926637844,-460.0,0.00018162,2]
[367774500,1750926637853,-547.58,0.00018162,2]
[367774501,1750926637863,-1799.96,0.00018162,2]
[367774502,1750926637873,-460.0,0.00018162,2]
[367774503,1750926637885,-460.0,0.00018162,2]
[367774504,1750926637895,-460.0,0.00018162,2]
[367774505,1750926637905,-743.3,0.00018162,2]
[367774506,1750926637916,-2012.3,0.00018162,2]
[367774507,1750926637927,-460.0,0.00018162,2]
[367774508,1750926637936,-460.0,0.00018162,2]
[367774509,1750926637947,-2473.19,0.00018162,2]
[367774510,1750926637958,-460.0,0.00018162,2]
[367774511,1750926637967,-1244.07,0.00018162,2]
[367774512,1750926637977,-677.05,0.00018162,2]
[367774513,1750926637988,-361.9,0.00018162,2]
[367774514,1750926637998,-468.36,0.00018162,2]
[367774515,1750926638007,-460.0,0.00018162,2]
[367774516,1750926638016,-460.0,0.00018162,2]
[367774517,1750926638026,-460.0,0.00018162,2]
[367774518,1750926638035,-460.0,0.00018162,2]
[367774519,1750926638045,-699.03,0.00018162,2]
[367774520,1750926638054,-397.54,0.00018162,2]
[367774521,1750926638063,-460.0,0.00018162,2]
[367774522,1750926638073,-460.0,0.00018163,2]
[367774523,1750926638082,-460.0,0.00018163,2]
[367774524,1750926638092,-471.6,0.00018163,2]
[367774526,1750926638101,-460.0,0.00018163,2]
[367774527,1750926638111,-661.19,0.00018163,2]
[367774528,1750926638120,-460.0,0.00018163,2]
[367774529,1750926638130,-460.0,0.00018163,2]
[367774530,1750926638140,-460.0,0.00018163,2]
[367774531,1750926638149,-460.0,0.00018163,2]
[367774532,1750926638161,-839.6,0.00018163,2]
[367774533,1750926638171,-460.0,0.00018163,2]
[367774534,1750926638180,-460.0,0.00018163,2]
[367774535,1750926638191,-460.0,0.00018163,2]
[367774540,1750926638312,-460.0,0.00018163,2]
[367774542,1750926638322,-460.0,0.00018163,2]
[367774544,1750926638331,-460.0,0.00018163,2]
[367774546,1750926638340,-460.0,0.00018163,2]
[367774547,1750926638350,-460.0,0.00018163,2]
[367774549,1750926638359,-953.78,0.00018163,2]
[367774551,1750926638369,-460.0,0.00018163,2]
[367774553,1750926638378,-460.0,0.00018163,2]
[367774555,1750926638388,-460.0,0.00018163,2]
[367774557,1750926638397,-579.78,0.00018163,2]
[367774559,1750926638406,-2178.28,0.00018163,2]
[367774560,1750926638415,-1253.13,0.00018163,2]
[367774562,1750926638425,-1036.8,0.00018163,2]
[367774564,1750926638434,-600.92,0.00018163,2]
[367774566,1750926638444,-460.0,0.00018163,2]
[367774568,1750926638454,-3140.38,0.00018163,2]
[367774570,1750926638464,-863.99,0.00018164,2]
[367774572,1750926638474,-476.21,0.00018164,2]
[367774574,1750926638483,-460.0,0.00018164,2]
[367774576,1750926638492,-805.45,0.00018164,2]
[367774578,1750926638502,-159.66613069,0.00018178,2]
[367774580,1750926638513,-500.68333306,0.00018186,2]
[367774582,1750926638522,-318.69058421,0.00018186,2]
[367774584,1750926638531,-500.0,0.00018186,2]
[367774586,1750926638541,-151.0,0.00018213,2]
[367774588,1750926638550,-202.40549438,0.0001837,2]
[367774590,1750926638560,-348.0,0.00018378,2]
[367774592,1750926638570,-348.0,0.00018381,2]
[367774593,1750926638579,-151.0,0.00018382,2]
[367774594,1750926638588,-151.0,0.00018382,2]
[367774595,1750926638597,-500.0,0.00018386,2]
[367774596,1750926638607,-500.0,0.00018386,2]
[367774597,1750926638616,-500.0,0.00018386,2]
[367774598,1750926638625,-500.0,0.00018392,2]
[367774599,1750926638634,-500.0,0.00018394,2]
[367774600,1750926638643,-500.0,0.00018395,2]
[367774601,1750926638652,-500.0,0.00018395,2]
[367774602,1750926638661,-500.0,0.00018395,2]
[367774603,1750926638670,-500.40138707,0.00018395,2]
[367774604,1750926638679,-500.0,0.00018408,2]
[367774605,1750926638688,-500.8879173,0.00018408,2]
[367774606,1750926638698,-501.00939685,0.00018408,2]
[367774607,1750926638707,-500.0,0.00018408,2]
[367774608,1750926638716,-500.0,0.00018408,2]
[367774609,1750926638726,-610.27674679,0.00018408,2]
[367774610,1750926638735,-500.0,0.00018418,2]
[367774611,1750926638744,-500.0,0.00018418,2]
[367774612,1750926638754,-793.66,0.00018429,3]
[367774613,1750926638762,-396.82,0.00018429,3]
[367774614,1750926638771,-370.62,0.00018429,3]
[367774615,1750926638780,-460.0,0.00018434,2]
[367774616,1750926638790,-863.1,0.00018434,2]
[367774617,1750926638798,-460.0,0.00018434,2]
[367774618,1750926638809,-348.0,0.00018434,2]
[367774619,1750926638817,-262.515764,0.00018435,2]
[367774620,1750926638826,-151.0,0.00018435,2]
[367774621,1750926638835,-460.0,0.00018435,2]
[367774622,1750926638844,-330.410676,0.00018435,2]
[367774623,1750926638853,-330.410676,0.00018435,2]
[367774624,1750926638862,-1372.71,0.00018435,2]
[367774625,1750926638873,-517.77986984,0.00018436,2]
[367774626,1750926638886,-199.6044916,0.00018436,2]
[367774627,1750926638895,-500.0,0.00018436,2]
[367774628,1750926638905,-500.0,0.00018436,2]
[367774629,1750926638914,-500.0,0.00018436,2]
[367774630,1750926638923,-500.0,0.00018436,2]
[367774631,1750926638932,-506.60638078,0.00018436,2]
[367774632,1750926638942,-500.0,0.00018436,2]
[367774633,1750926638952,-500.0,0.00018436,2]
[367774634,1750926638962,-500.3681152,0.00018436,2]
[367774635,1750926638972,-162.373761,0.00018436,2]
[367774636,1750926638982,-284.561931,0.00018436,2]
[367774638,1750926638991,-300.41,0.00018436,2]
[367774639,1750926639001,-151.0,0.00018436,2]
[367774641,1750926639010,-151.0,0.00018436,2]
[367774643,1750926639019,-151.0,0.00018436,2]
[367774645,1750926639029,-151.0,0.00018436,2]
[367774647,1750926639038,-151.0,0.00018436,2]
[367774649,1750926639048,-460.0,0.00018436,2]
[367774651,1750926639058,-181.057405,0.00018436,2]
[367774653,1750926639067,-181.057405,0.00018436,2]
[367774655,1750926639077,-460.0,0.00018436,2]
[367774657,1750926639086,-1430.01,0.00018436,2]
[367774659,1750926639096,-460.0,0.00018436,2]
[367774661,1750926639105,-460.0,0.00018436,2]
[367774663,1750926639115,-460.0,0.00018436,2]
[367774665,1750926639124,-460.0,0.00018436,2]
[367774666,1750926639133,-547.58,0.00018436,2]
[367774668,1750926639146,-1799.96,0.00018436,2]
[367774670,1750926639155,-460.0,0.00018436,2]
[367774672,1750926639164,-460.0,0.00018436,2]
[367774674,1750926639173,-570.79,0.00018436,2]
[367774676,1750926639182,-743.3,0.00018436,2]
[367774678,1750926639191,-2012.3,0.00018436,2]
[367774680,1750926639200,-571.59,0.00018436,2]
[367774682,1750926639209,-545.06,0.00018436,2]